fUSD/lending_fUSD_20240618
["ID","MTS","AMOUNT","RATE_DAILY","PERIOD"]
[329786834,1718674262936,-500.0,0.00021917,2]
[329786835,1718674262945,-500.0,0.00021917,2]
[329786836,1718674262955,-2815.73,0.00021917,2]
[329786837,1718674262964,-10283.61,0.00021917,2]
[329786838,1718674262974,-500.0,0.00021917,2]
[329786839,1718674262984,-500.0,0.00021917,2]
[329786840,1718674262994,-7683.1,0.00021917,2]
[329786841,1718674263004,-500.0,0.00021917,2]
[329786842,1718674263018,-500.0,0.00021917,2]
[329786843,1718674263027,-500.0,0.00021917,2]
[329786844,1718674263037,-500.0,0.00021917,2]
[329786845,1718674263047,-500.0,0.00021917,2]
[329786846,1718674263057,-500.0,0.00021917,2]
[329786847,1718674263066,-652.26,0.00021917,2]
[329786848,1718674263076,-500.0,0.00021917,2]
[329786849,1718674263093,-500.0,0.00021917,2]
[329786850,1718674263103,-4441.39,0.00021917,2]
[329786851,1718674263113,-785.18,0.00021917,2]
[329786852,1718674263123,-1258.99,0.00021917,2]
[329786853,1718674263133,-500.0,0.00021917,2]
[329786854,1718674263142,-1984.01,0.00021917,2]
[329786855,1718674263152,-500.0,0.00021917,2]
[329786856,1718674263161,-500.0,0.00021917,2]
[329786857,1718674263171,-711.12,0.00021917,2]
[329786858,1718674263180,-1385.685227,0.00021917,2]
[329786859,1718674263190,-1914.48,0.00021917,2]
[329786860,1718674263199,-1385.685227,0.00021917,2]
[329786861,1718674263209,-500.0,0.00021917,2]
[329786862,1718674263219,-1385.685227,0.00021917,2]
[329786863,1718674263230,-500.0,0.00021917,2]
[329786864,1718674263240,-1385.685227,0.00021917,2]
[329786865,1718674263250,-500.0,0.00021917,2]
[329786866,1718674263260,-2844.91,0.00021917,2]
[329786867,1718674263270,-1385.685227,0.00021917,2]
[329786868,1718674263279,-500.0,0.00021917,2]
[329786869,1718674263290,-3734.02,0.00021917,2]
[329786870,1718674263299,-2239.47,0.00021917,2]
[329786871,1718674263309,-500.0,0.00021917,2]
[329786872,1718674263318,-500.0,0.00021917,2]
[329786873,1718674263327,-1385.685227,0.00021917,2]
[329786874,1718674263336,-500.0,0.00021917,2]
[329786875,1718674263346,-2384.25,0.00021917,2]
[329786876,1718674263355,-1385.685227,0.00021917,2]
[329786877,1718674263365,-1198.33,0.00021917,2]
[329786878,1718674263375,-1385.685227,0.00021917,2]
[329786879,1718674263384,-1385.685227,0.00021917,2]
[329786880,1718674263394,-501.78580156,0.00021917,2]
[329786881,1718674263404,-500.0,0.00021917,2]
[329786882,1718674263415,-1385.685222,0.00021917,2]
[329786883,1718674263425,-500.0,0.00021917,2]
[329786884,1718674263436,-500.0,0.00021917,2]
[329786885,1718674263453,-908.82,0.00021917,2]
[329786886,1718674263463,-1179.67,0.00021917,2]
[329786887,1718674263472,-500.0,0.00021917,2]
[329786888,1718674263483,-500.0,0.00021917,2]
[329786889,1718674263493,-500.0,0.00021917,2]
[329786890,1718674263503,-4377.28,0.00021917,2]
[329786891,1718674263512,-500.0,0.00021917,2]
[329786892,1718674263522,-500.0,0.00021917,2]
[329786893,1718674263532,-7636.75,0.00021917,2]
[329786894,1718674263542,-500.0,0.00021917,2]
[329786895,1718674263551,-500.0,0.00021917,2]
[329786896,1718674263561,-874.67,0.00021917,2]
[329786897,1718674263570,-250.0,0.00021917,2]
[329786898,1718674263580,-631.17,0.00021917,2]
[329786899,1718674263601,-3639.01,0.00021917,2]
[329786900,1718674263610,-801.27,0.00021917,2]
[329786901,1718674263620,-4152.02,0.00021917,2]
[329786902,1718674263629,-500.0,0.00021917,2]
[329786903,1718674263639,-818.56,0.00021917,2]
[329786904,1718674263648,-500.0,0.00021917,2]
[329786905,1718674263658,-500.0,0.00021917,2]
[329786906,1718674263668,-2147.44,0.00021917,2]
[329786907,1718674263678,-500.0,0.00021917,2]
[329786908,1718674263688,-475.82342263,0.00021917,2]
[329786909,1718674263697,-5713.96,0.00021917,2]
[329786910,1718674263707,-10636.95,0.00021917,2]
[329786911,1718674263717,-1146.90826095,0.00021917,2]
[329786912,1718674263728,-554.66253411,0.00021917,2]
[329786913,1718674263738,-500.0,0.00021917,2]
[329786914,1718674263747,-2105.48,0.00021917,2]
[329786915,1718674263758,-500.0,0.00021917,2]
[329786916,1718674263768,-500.0,0.00021917,2]
[329786917,1718674263778,-1345.61,0.00021917,2]
[329786918,1718674263789,-24566.15,0.00021917,2]
[329786919,1718674263799,-500.0,0.00021917,2]
[329786920,1718674263808,-1919.7,0.00021917,2]
[329786921,1718674263817,-500.0,0.00021917,2]
[329786922,1718674263827,-5867.13,0.00021917,2]
[329786923,1718674263845,-503.55163252,0.00021917,2]
[329786924,1718674263855,-500.0,0.00021917,2]
[329786925,1718674263864,-500.0,0.00021917,2]
[329786926,1718674263874,-7405.63,0.00021917,2]
[329786927,1718674263883,-500.0,0.00021917,2]
[329786928,1718674263892,-723.85,0.00021917,2]
[329786929,1718674263902,-946.53,0.00021917,2]
[329786930,1718674263911,-500.0,0.00021917,2]
[329786931,1718674263920,-1153.45,0.00021917,2]
[329786932,1718674263930,-500.0,0.00021917,2]
[329786933,1718674263939,-500.0,0.00021917,2]
[329786934,1718674263947,-500.0,0.00021917,2]
[329786935,1718674263957,-1097.51,0.00021917,2]
[329786936,1718674263967,-500.0,0.00021917,2]
[329786937,1718674263976,-2856.53,0.00021917,2]
[329786938,1718674263987,-500.0,0.00021917,2]
[329786939,1718674263996,-500.0,0.00021917,2]
[329786940,1718674264006,-500.0,0.00021917,2]
[329786941,1718674264016,-500.0,0.00021917,2]
[329786942,1718674264025,-1006.89,0.00021917,2]
[329786943,1718674264035,-3740.45,0.00021917,2]
[329786944,1718674264045,-34317.45,0.00021917,2]
[329786945,1718674264054,-2059.45,0.00021917,2]
[329786946,1718674264064,-500.0,0.00021917,2]
[329786947,1718674264073,-500.0,0.00021917,2]
[329786948,1718674264087,-500.0,0.00021917,2]
[329786949,1718674264100,-500.0,0.00021917,2]
[329786950,1718674264110,-500.0,0.00021917,2]
[329786951,1718674264119,-500.0,0.00021917,2]
[329786952,1718674264128,-500.0,0.00021917,2]
[329786953,1718674264138,-535.94,0.00021917,2]
[329786954,1718674264147,-562.86660763,0.00021917,2]
[329786955,1718674264156,-500.0,0.00021917,2]
[329786956,1718674264165,-500.0,0.00021917,2]
[329786957,1718674264174,-500.0,0.00021917,2]
[329786958,1718674264183,-627.92,0.00021917,2]
[329786959,1718674264192,-500.0,0.00021917,2]
[329786960,1718674264201,-500.0,0.00021917,2]
[329786961,1718674264211,-500.0,0.00021917,2]
[329786962,1718674264220,-500.0,0.00021917,2]
[329786963,1718674264230,-3644.66,0.00021917,2]
[329786964,1718674264240,-500.0,0.00021917,2]
[329786965,1718674264250,-500.0,0.00021917,2]
[329786966,1718674264260,-512.32814796,0.00021917,2]
[329786967,1718674264270,-1824.82,0.00021917,2]
[329786968,1718674264279,-503.39272358,0.00021917,2]
[329786969,1718674264289,-500.0,0.00021917,2]
[329786970,1718674264298,-2003.00448259,0.00021917,2]
[329786971,1718674264308,-1266.32,0.00021917,2]
[329786972,1718674264318,-748.42,0.00021917,2]
[329786973,1718674264328,-1988.37,0.00021917,2]
[329786974,1718674264345,-12454.15,0.00021917,2]
[329786975,1718674264355,-510.79565663,0.00021917,2]
[329786976,1718674264364,-501.39783247,0.00021917,2]
[329786977,1718674264373,-993.76,0.00021917,2]
[329786978,1718674264382,-500.0,0.00021917,2]
[329786979,1718674264391,-500.0,0.00021917,2]
[329786980,1718674264401,-500.0,0.00021917,2]
[329786981,1718674264410,-500.82348481,0.00021917,2]
[329786982,1718674264419,-674.03,0.00021917,2]
[329786983,1718674264428,-500.0,0.00021917,2]
[329786984,1718674264439,-500.0,0.00021917,2]
[329786985,1718674264451,-500.0,0.00021917,2]
[329786986,1718674264461,-3098.0,0.00021918,2]
[329786987,1718674264471,-150056.0,0.00021918,2]
[329786988,1718674264481,-3202.0,0.00021918,2]
[329786989,1718674264491,-26222.0,0.00021918,2]
[329786990,1718674264501,-151.940579,0.00021918,2]
[329786991,1718674264511,-411.16,0.00021918,2]
[329786992,1718674264524,-250.0,0.00021918,2]
[329786993,1718674264533,-150.0,0.00021918,2]
[329786994,1718674264543,-163.10378917,0.00021918,2]
[329786995,1718674264552,-300.0,0.00021918,2]
[329786996,1718674264562,-500.0,0.00021918,2]
[329786997,1718674264571,-535.77,0.00021918,2]
[329786998,1718674264581,-16863.5,0.00021918,3]
[329786999,1718674264599,-150.0,0.00021919,2]
[329787000,1718674264609,-2091.8331281,0.00021921,2]
[329787001,1718674264785,-4837.7040745,0.00021921,2]
[329787002,1718674264796,-150.0,0.00021924,2]
[329787003,1718674264806,-150.0,0.00021931,2]
[329787004,1718674264816,-150.0,0.00021935,2]
[329787005,1718674264826,-150.0,0.00021936,2]
[329787006,1718674264842,-150.0,0.00021941,2]
[329787007,1718674264852,-150.0,0.00021948,2]
[329787008,1718674264861,-150.0,0.00021958,2]
[329787009,1718674264871,-150.0,0.0002196,2]
[329787010,1718674264880,-150.0,0.00021968,2]
[329787011,1718674264889,-150.0,0.00021978,2]
[329787012,1718674264899,-150.0,0.0002199,2]
[329787013,1718674264908,-1075.38446882,0.00021993,2]
[329787014,1718674264917,-150.0,0.00021995,2]
[329787015,1718674264926,-150.0,0.00021995,2]
[329787016,1718674264935,-1040.19756488,0.00021999,2]
[329787017,1718674264944,-1118.79581983,0.00021999,2]
[329787018,1718674264953,-5775.53904364,0.00022,2]
[329787019,1718674264964,-1043.72873983,0.00022,2]
[329787020,1718674264973,-2000.0,0.00022,2]
[329787021,1718674264982,-200.0,0.00022,2]
[329787022,1718674264992,-790.86878271,0.00022,2]
[329787023,1718674265001,-2000.0,0.00022,2]
[329787024,1718674265011,-200.0,0.00022,2]
[329787025,1718674265020,-5788.22,0.00022,2]
[329787026,1718674265030,-1194.6,0.00022,2]
[329787027,1718674265039,-2000.0,0.00022,2]
[329787028,1718674265048,-200.0,0.00022,2]
[329787029,1718674265058,-224.0,0.00022,2]
[329787030,1718674265068,-509.0,0.00022,2]
[329787031,1718674265077,-355.0,0.00022,2]
[329787032,1718674265092,-1062.46800721,0.00022,2]
[329787033,1718674265101,-200.0,0.00022,2]
[329787034,1718674265110,-150.0,0.00022011,2]
[329787035,1718674265120,-500.0,0.00022026,2]
[329787036,1718674265130,-500.0,0.00022026,2]
[329787037,1718674265139,-150.0,0.00022027,2]
[329787038,1718674265149,-150.0,0.00022036,2]
[329787039,1718674265159,-1048.5085684,0.0002205,2]
[329787040,1718674265168,-1037.68946363,0.0002205,2]
[329787041,1718674265178,-849.78607623,0.00022095,2]
[329787042,1718674265187,-801.55,0.00022101,2]
[329787043,1718674265197,-800.0,0.00022137,2]
[329787044,1718674265206,-800.0,0.00022137,2]
[329787045,1718674265216,-800.0,0.00022137,2]
[329787046,1718674265225,-800.0,0.00022137,2]
[329787047,1718674265235,-800.0,0.00022137,2]
[329787048,1718674265245,-327.72439793,0.00022142,2]
[329787049,1718674265254,-157.061807,0.00022145,2]
[329787050,1718674265264,-157.061807,0.00022146,2]
[329787051,1718674265274,-4000.0,0.0002218,2]
[329787052,1718674265284,-871.34871393,0.00022189,2]
[329787053,1718674265294,-431.72811163,0.00022189,2]
[329787054,1718674265306,-235.18630162,0.00022189,2]
[329787055,1718674265315,-166.83348781,0.00022189,2]
[329787056,1718674265325,-1535.71,0.00022189,3]
[329787057,1718674265345,-289.20595893,0.0002219,2]
[329787058,1718674265355,-16863.5,0.0002219,3]
[329787059,1718674265365,-16863.5,0.0002219,3]
[329787060,1718674265374,-16863.5,0.0002219,3]
[329787061,1718674265382,-16863.5,0.0002219,3]
[329787062,1718674265391,-16863.5,0.0002219,3]
[329787063,1718674265400,-16863.63579895,0.0002219,3]
[329787064,1718674265409,-1535.71,0.0002219,3]
[329787065,1718674265418,-1535.71,0.0002219,3]
[329787066,1718674265427,-1535.71,0.0002219,3]
[329787067,1718674265437,-1535.71,0.0002219,3]
[329787068,1718674265446,-1535.78,0.0002219,3]
[329787069,1718674265457,-150.0,0.0002219,10]
[329787070,1718674265469,-300.0,0.0002219,2]
[329787071,1718674265478,-453.92333144,0.00022191,3]
[329787072,1718674265488,-598.86125346,0.00022191,3]
[329787073,1718674265498,-500.0,0.00022191,3]
[329787074,1718674265508,-499.36055924,0.00022191,3]
[329787075,1718674265518,-522.54398198,0.00022191,3]
[329787076,1718674265528,-169.99106151,0.00022191,3]
[329787077,1718674265538,-503.10527079,0.00022191,3]
[329787078,1718674265549,-500.0,0.00022191,3]
[329787079,1718674265560,-500.0,0.00022191,3]
[329787080,1718674265570,-500.0,0.00022191,3]
[329787081,1718674265579,-525.90407821,0.00022191,3]
[329787082,1718674265598,-500.0,0.00022191,3]
[329787083,1718674265608,-500.0,0.00022191,3]
[329787084,1718674265618,-500.0,0.00022191,3]
[329787085,1718674265628,-285.23201656,0.00022191,3]
[329787086,1718674265638,-500.0,0.00022191,3]
[329787087,1718674265647,-500.0,0.00022191,3]
[329787088,1718674265657,-506.47010646,0.00022191,3]
[329787089,1718674265666,-500.0,0.00022191,3]
[329787090,1718674265676,-500.0,0.00022191,3]
[329787091,1718674265686,-207.46,0.00022191,3]
[329787092,1718674265696,-514.75232569,0.00022191,3]
[329787093,1718674265706,-500.0,0.00022191,3]
[329787094,1718674265716,-500.0,0.00022191,3]
[329787095,1718674265726,-500.0,0.00022191,3]
[329787096,1718674265735,-500.0,0.00022191,3]
[329787097,1718674265744,-500.0,0.00022191,3]
[329787098,1718674265754,-500.0,0.00022191,3]
[329787099,1718674265763,-550.99222277,0.00022191,3]
[329787100,1718674265773,-500.0,0.00022191,3]
[329787101,1718674265782,-513.10199135,0.00022191,3]
[329787102,1718674265792,-500.0,0.00022191,3]
[329787103,1718674265802,-500.0,0.00022191,3]
[329787104,1718674265812,-500.0,0.00022191,3]
[329787105,1718674265822,-500.0,0.00022191,3]
[329787106,1718674265831,-500.0,0.00022191,3]
[329787107,1718674265850,-512.85497937,0.00022191,3]
[329787108,1718674265860,-500.0,0.00022191,3]
[329787109,1718674265869,-183.95887513,0.00022191,3]
[329787110,1718674265878,-500.0,0.00022191,3]
[329787111,1718674265888,-512.26876176,0.00022191,3]
[329787112,1718674265897,-500.0,0.00022191,3]
[329787113,1718674265906,-500.0,0.00022191,3]
[329787114,1718674265915,-500.0,0.00022191,3]
[329787115,1718674265936,-500.0,0.00022191,3]
[329787116,1718674265946,-524.80222361,0.00022191,3]
[329787117,1718674265965,-513.51721123,0.00022191,3]
[329787118,1718674265975,-500.0,0.00022191,3]
[329787119,1718674265985,-500.0,0.00022191,3]
[329787120,1718674265995,-500.0,0.00022191,3]
[329787121,1718674266005,-500.0,0.00022191,3]
[329787122,1718674266015,-500.0,0.00022191,3]
[329787123,1718674266025,-500.0,0.00022191,3]
[329787124,1718674266035,-704.53,0.00022191,3]
[329787125,1718674266044,-500.0,0.00022191,3]
[329787126,1718674266054,-500.0,0.00022191,3]
[329787127,1718674266064,-500.0,0.00022191,3]
[329787128,1718674266073,-500.0,0.00022191,3]
[329787129,1718674266082,-489.0730871,0.00022191,3]
[329787130,1718674266098,-500.0,0.00022191,3]
[329787131,1718674266108,-500.0,0.00022191,3]
[329787132,1718674266118,-512.22037105,0.00022191,3]
[329787133,1718674266127,-500.0,0.00022191,3]
[329787134,1718674266137,-500.0,0.00022191,3]
[329787135,1718674266146,-500.0,0.00022191,3]
[329787136,1718674266156,-500.0,0.00022191,3]
[329787137,1718674266166,-500.0,0.00022191,3]
[329787138,1718674266175,-500.0,0.00022191,3]
[329787139,1718674266184,-500.0,0.00022191,3]
[329787140,1718674266194,-500.0,0.00022191,3]
[329787141,1718674266203,-500.0,0.00022191,3]
[329787142,1718674266214,-500.0,0.00022191,3]
[329787143,1718674266223,-532.56572991,0.00022191,3]
[329787144,1718674266233,-500.0,0.00022191,3]
[329787145,1718674266243,-500.0,0.00022191,3]
[329787146,1718674266252,-500.0,0.00022191,3]
[329787147,1718674266261,-500.0,0.00022191,3]
[329787148,1718674266271,-500.0,0.00022191,3]
[329787149,1718674266281,-500.0,0.00022191,3]
[329787150,1718674266291,-500.0,0.00022191,3]
[329787151,1718674266300,-500.0,0.00022191,3]
[329787152,1718674266309,-492.29293164,0.00022191,3]
[329787153,1718674266319,-500.0,0.00022191,3]
[329787154,1718674266328,-500.0,0.00022191,3]
[329787155,1718674266342,-500.0,0.00022191,3]
[329787156,1718674266352,-500.0,0.00022191,3]
[329787157,1718674266361,-500.0,0.00022191,3]
[329787158,1718674266371,-500.0,0.00022191,3]
[329787159,1718674266381,-500.0,0.00022191,3]
[329787160,1718674266390,-500.0,0.00022191,3]
[329787161,1718674266399,-500.0,0.00022191,3]
[329787162,1718674266409,-500.0,0.00022191,3]
[329787163,1718674266418,-500.0,0.00022191,3]
[329787164,1718674266428,-500.0,0.00022191,3]
[329787165,1718674266438,-500.0,0.00022191,3]
[329787166,1718674266451,-500.0,0.00022191,3]
[329787167,1718674266460,-500.0,0.00022191,3]
[329787168,1718674266470,-500.0,0.00022191,3]
[329787169,1718674266479,-537.38923927,0.00022191,3]
[329787170,1718674266489,-649.41960389,0.00022191,3]
[329787171,1718674266498,-520.93080688,0.00022191,3]
[329787172,1718674266508,-500.0,0.00022191,3]
[329787173,1718674266518,-500.0,0.00022191,3]
[329787174,1718674266530,-500.0,0.00022191,3]
[329787175,1718674266540,-500.0,0.00022191,3]
[329787176,1718674266549,-500.0,0.00022191,3]
[329787177,1718674266558,-502.91939169,0.00022191,3]
[329787178,1718674266567,-500.0,0.00022191,3]
[329787179,1718674266577,-514.2732946,0.00022191,3]
[329787180,1718674266589,-500.0,0.00022191,3]
[329787181,1718674266599,-458.10533222,0.00022191,3]
[329787182,1718674266608,-500.0,0.00022191,3]
[329787183,1718674266618,-500.0,0.00022191,3]
[329787184,1718674266628,-500.0,0.00022191,3]
[329787185,1718674266637,-500.0,0.00022191,3]
[329787186,1718674266646,-500.0,0.00022191,3]
[329787187,1718674266656,-500.0,0.00022191,3]
[329787188,1718674266666,-500.0,0.00022191,3]
[329787189,1718674266675,-500.0,0.00022191,3]
[329787190,1718674266685,-500.0,0.00022191,3]
[329787191,1718674266694,-500.0,0.00022191,3]
[329787192,1718674266703,-500.0,0.00022191,3]
[329787193,1718674266712,-500.0,0.00022191,3]
[329787194,1718674266721,-500.0,0.00022191,3]
[329787195,1718674266730,-500.0,0.00022191,3]
[329787196,1718674266739,-500.0,0.00022191,3]
[329787197,1718674266748,-500.0,0.00022191,2]
[329787198,1718674266757,-500.0,0.00022191,3]
[329787199,1718674266767,-500.0,0.00022191,3]
[329787200,1718674266776,-500.0,0.00022191,3]
[329787201,1718674266786,-500.0,0.00022191,3]
[329787202,1718674266796,-500.0,0.00022191,3]
[329787203,1718674266806,-500.0,0.00022191,3]
[329787204,1718674266816,-500.0,0.00022191,3]
[329787205,1718674266826,-500.0,0.00022191,3]
[329787206,1718674266841,-500.0,0.00022191,3]
[329787207,1718674266851,-500.0,0.00022191,3]
[329787208,1718674266860,-500.0,0.00022191,3]
[329787209,1718674266871,-500.0,0.00022191,3]
[329787210,1718674266881,-628.76703955,0.00022191,3]
[329787211,1718674266891,-500.0,0.00022191,3]
[329787212,1718674266900,-500.0,0.00022191,3]
[329787213,1718674266909,-500.0,0.00022191,3]
[329787214,1718674266919,-500.0,0.00022191,3]
[329787215,1718674266932,-500.0,0.00022191,3]
[329787216,1718674266942,-500.0,0.00022191,3]
[329787217,1718674266951,-500.0,0.00022191,3]
[329787218,1718674266960,-500.0,0.00022191,3]
[329787219,1718674266970,-500.0,0.00022191,3]
[329787220,1718674266980,-500.0,0.00022191,3]
[329787221,1718674266990,-500.0,0.00022191,3]
[329787222,1718674266999,-500.0,0.00022191,3]
[329787223,1718674267008,-500.0,0.00022191,3]
[329787224,1718674267018,-500.0,0.00022191,3]
[329787225,1718674267027,-500.0,0.00022191,3]
[329787226,1718674267036,-500.0,0.00022191,3]
[329787227,1718674267046,-500.0,0.00022191,3]
[329787228,1718674267059,-500.0,0.00022191,3]
[329787229,1718674267069,-500.0,0.00022191,3]
[329787230,1718674267078,-500.0,0.00022191,3]
[329787231,1718674267093,-500.0,0.00022191,3]
[329787232,1718674267103,-500.0,0.00022191,3]
[329787233,1718674267112,-500.0,0.00022191,3]
[329787234,1718674267121,-500.0,0.00022191,3]
[329787235,1718674267131,-500.0,0.00022191,3]
[329787236,1718674267141,-500.0,0.00022191,3]
[329787237,1718674267150,-500.0,0.00022191,3]
[329787238,1718674267159,-500.0,0.00022191,3]
[329787239,1718674267169,-500.0,0.00022191,3]
[329787240,1718674267179,-500.0,0.00022191,3]
[329787241,1718674267189,-500.0,0.00022191,3]
[329787242,1718674267446,-500.0,0.00022191,3]
[329787243,1718674267456,-500.0,0.00022191,3]
[329787244,1718674267468,-504.85814043,0.00022191,3]
[329787245,1718674267477,-500.0,0.00022191,3]
[329787246,1718674267486,-500.0,0.00022191,3]
[329787247,1718674267496,-500.0,0.00022191,3]
[329787248,1718674267506,-500.0,0.00022191,3]
[329787249,1718674267516,-500.0,0.00022191,3]
[329787250,1718674267526,-367.10303516,0.00022191,3]
[329787251,1718674267537,-500.0,0.00022191,3]
[329787252,1718674267546,-500.0,0.00022191,3]
[329787253,1718674267555,-500.0,0.00022191,3]
[329787254,1718674267565,-543.51355425,0.00022191,3]
[329787255,1718674267574,-500.0,0.00022191,3]
[329787256,1718674267593,-500.0,0.00022191,3]
[329787257,1718674267603,-500.0,0.00022191,3]
[329787258,1718674267613,-500.0,0.00022191,3]
[329787259,1718674267624,-500.0,0.00022191,3]
[329787260,1718674267634,-500.0,0.00022191,3]
[329787261,1718674267643,-500.0,0.00022191,3]
[329787262,1718674267653,-500.0,0.00022191,3]
[329787263,1718674267663,-500.0,0.00022191,3]
[329787264,1718674267673,-500.0,0.00022191,3]
[329787265,1718674267682,-500.0,0.00022191,3]
[329787266,1718674267692,-500.0,0.00022191,3]
[329787267,1718674267701,-500.0,0.00022191,3]
[329787268,1718674267711,-500.0,0.00022191,3]
[329787269,1718674267721,-500.0,0.00022191,3]
[329787270,1718674267731,-500.0,0.00022191,3]
[329787271,1718674267740,-500.0,0.00022191,3]
[329787272,1718674267750,-500.0,0.00022191,3]
[329787273,1718674267759,-500.0,0.00022191,3]
[329787274,1718674267768,-500.0,0.00022191,3]
[329787275,1718674267778,-500.0,0.00022191,3]
[329787276,1718674267787,-500.0,0.00022191,3]
[329787277,1718674267797,-500.0,0.00022191,3]
[329787278,1718674267807,-500.0,0.00022191,3]
[329787279,1718674267817,-500.0,0.00022191,3]
[329787280,1718674267827,-500.0,0.00022191,3]
[329787281,1718674267840,-500.0,0.00022191,3]
[329787282,1718674267850,-500.0,0.00022191,3]
[329787283,1718674267860,-500.0,0.00022191,3]
[329787284,1718674267869,-500.0,0.00022191,3]
[329787285,1718674267879,-500.0,0.00022191,3]
[329787286,1718674267889,-500.0,0.00022191,3]
[329787287,1718674267898,-500.0,0.00022191,3]
[329787288,1718674267908,-500.0,0.00022191,3]
[329787289,1718674267918,-348.35,0.00022191,3]
[329787290,1718674267931,-500.0,0.00022191,3]
[329787291,1718674267941,-500.0,0.00022191,3]
[329787292,1718674267950,-500.0,0.00022191,3]
[329787293,1718674267960,-649.11097747,0.00022191,3]
[329787294,1718674267969,-500.0,0.00022191,3]
[329787295,1718674267979,-500.0,0.00022191,3]
[329787296,1718674267989,-522.42031361,0.00022191,3]
[329787297,1718674267998,-500.0,0.00022191,3]
[329787298,1718674268008,-500.0,0.00022191,3]
[329787299,1718674268017,-500.0,0.00022191,3]
[329787300,1718674268027,-500.0,0.00022191,3]
[329787301,1718674268036,-566.6949686,0.00022191,3]
[329787302,1718674268045,-500.0,0.00022191,3]
[329787303,1718674268055,-500.0,0.00022191,3]
[329787304,1718674268064,-500.0,0.00022191,3]
[329787305,1718674268074,-500.0,0.00022191,3]
[329787306,1718674268094,-500.0,0.00022191,3]
[329787307,1718674268103,-500.0,0.00022191,3]
[329787308,1718674268113,-500.0,0.00022191,3]
[329787309,1718674268122,-500.0,0.00022191,3]
[329787310,1718674268132,-500.0,0.00022191,3]
[329787311,1718674268141,-211.33037566,0.00022191,3]
[329787312,1718674268149,-500.0,0.00022191,3]
[329787313,1718674268158,-500.0,0.00022191,3]
[329787314,1718674268167,-500.0,0.00022191,3]
[329787315,1718674268176,-500.0,0.00022191,3]
[329787316,1718674268185,-500.0,0.00022191,3]
[329787317,1718674268194,-500.0,0.00022191,3]
[329787318,1718674268204,-500.0,0.00022191,3]
[329787319,1718674268214,-500.0,0.00022191,3]
[329787320,1718674268224,-500.0,0.00022191,3]
[329787321,1718674268234,-500.0,0.00022191,3]
[329787322,1718674268244,-500.0,0.00022191,3]
[329787323,1718674268254,-500.0,0.00022191,3]
[329787324,1718674268263,-500.0,0.00022191,3]
[329787325,1718674268273,-826.84,0.00022191,3]
[329787326,1718674268283,-500.0,0.00022191,3]
[329787327,1718674268293,-537.07,0.00022191,3]
[329787328,1718674268302,-500.0,0.00022191,3]
[329787329,1718674268312,-500.0,0.00022191,3]
[329787330,1718674268322,-500.0,0.00022191,3]
[329787331,1718674268332,-500.0,0.00022191,3]
[329787332,1718674268350,-500.0,0.00022191,3]
[329787333,1718674268360,-500.0,0.00022191,3]